bitfinex/quotes_SOLUSD_20251119
["timestamp","ask_amount","ask_price","bid_price","bid_amount"]
[1763544818525,0.7,139.81,139.76,0.2]
[1763544818725,0.7,139.81,139.77,2.10017447]
[1763544818921,0.7,139.81,139.76,0.2]
[1763544819117,0.7,139.81,139.77,2.10017447]
[1763544819724,0.7,139.81,139.76,0.2]
[1763544819725,0.7,139.81,139.78,2.10017447]
[1763544821736,0.7,139.81,139.77,2.10017447]
[1763544822535,1.7,139.82,139.79,2.10017447]
[1763544822731,0.7,139.83,139.79,2.10017447]
[1763544822732,2.4,139.83,139.79,2.10017447]
[1763544822955,0.7,139.82,139.79,2.10017447]
[1763544823654,0.7,139.82,139.78,2.10017447]
[1763544823858,0.7,139.82,139.76,18.32096]
[1763544824028,0.7,139.82,139.78,2.10017447]
[1763544824345,0.7,139.82,139.76,18.32096]
[1763544824648,0.7,139.82,139.78,2.10017447]
[1763544825425,1.7,139.83,139.8,2.10017447]
[1763544825754,2.4,139.83,139.8,2.10017447]
[1763544826248,0.7,139.85,139.81,2.10017447]
[1763544826432,3.80017447,139.86,139.81,2.10017447]
[1763544826632,0.7,139.84,139.81,2.10017447]
[1763544827937,2.10017447,139.83,139.78,2.10017447]
[1763544828336,0.7,139.82,139.78,2.10017447]
[1763544829152,18.12096,139.87,139.81,2.10017447]
[1763544829343,0.7,139.86,139.82,2.10017447]
[1763544830065,2.80017447,139.86,139.81,2.10017447]
[1763544830446,0.68,139.85,139.81,2.10017447]
[1763544830856,0.68,139.85,139.81,9.14202838]
[1763544831053,0.68,139.85,139.82,9.14202838]
[1763544832837,5.95118132,139.93,139.83,9.14202838]
[1763544833043,9.14202838,139.88,139.83,9.14202838]
[1763544833336,1.7,139.87,139.83,9.14202838]
[1763544833642,2.38,139.87,139.83,9.14202838]
[1763544833847,0.68,139.86,139.82,9.14202838]
[1763544834056,9.82202838,139.86,139.81,9.14202838]
[1763544834243,0.68,139.85,139.81,9.14202838]
[1763544836764,0.68,139.85,139.81,18.12096]
[1763544836965,0.68,139.85,139.8,9.14202838]
[1763544837470,9.82202838,139.85,139.8,9.14202838]
[1763544837668,9.14202838,139.84,139.79,27.26298838]
[1763544837862,0.68,139.83,139.79,27.26298838]
[1763544839266,2.38,139.83,139.79,27.26298838]
[1763544839453,11.52202838,139.83,139.78,27.26298838]
[1763544839768,0.68,139.82,139.78,9.14202838]
[1763544841967,9.82202838,139.82,139.77,9.14202838]
[1763544842150,9.82202838,139.82,139.76,9.34202838]
[1763544842354,9.82202838,139.81,139.76,9.34202838]
[1763544842555,9.82202838,139.81,139.76,0.2]
[1763544842556,9.14202838,139.8,139.76,0.2]
[1763544842864,11.52202838,139.79,139.76,0.2]
[1763544843239,0.68,139.78,139.76,0.2]
[1763544847067,2.38,139.79,139.76,9.34202838]
[1763544847443,0.68,139.78,139.76,0.2]
[1763544847649,27.90978769,139.83,139.77,9.14202838]
[1763544847650,0.68,139.83,139.77,9.14202838]
[1763544847967,0.68,139.83,139.76,9.98882769]
[1763544847968,0.68,139.82,139.76,9.98882769]
[1763544848157,0.68,139.82,139.78,9.14202838]
[1763544848658,0.68,139.82,139.76,9.98882769]
[1763544848659,9.82202838,139.82,139.76,0.2]
[1763544848873,9.14202838,139.8,139.76,0.2]
[1763544849065,10.84202838,139.8,139.76,0.2]
[1763544849371,0.68,139.79,139.76,9.34202838]
[1763544849573,2.38,139.8,139.77,9.14202838]
[1763544849875,0.68,139.8,139.77,9.14202838]
[1763544850779,0.68,139.8,139.76,9.34202838]
[1763544850958,9.82202838,139.8,139.76,0.2]
[1763544851356,0.68,139.79,139.76,0.2]
[1763544851951,9.82202838,139.79,139.76,0.2]
[1763544852151,9.14202838,139.77,139.76,0.2]
[1763544852677,9.82202838,139.77,139.76,0.2]
[1763544852856,0.68,139.77,139.76,0.2]
[1763544853373,3.96591968,139.77,139.76,0.2]
[1763544853975,0.68,139.77,139.76,0.2]
[1763544854362,2.38,139.79,139.76,0.2]
[1763544854872,0.68,139.78,139.76,0.2]
[1763544860660,3.28591968,139.77,139.71,0.2]
[1763544860865,3.28591968,139.73,139.71,0.2]
[1763544861285,0.66,139.72,139.71,0.2]
[1763544864984,0.71,139.73,139.71,0.2]
[1763544867487,3.99591968,139.75,139.71,0.2]
[1763544867669,3.99591968,139.75,139.71,3.69591968]
[1763544867670,0.71,139.75,139.71,3.69591968]
[1763544867869,0.71,139.77,139.73,3.28591968]
[1763544868190,3.28591968,139.78,139.73,3.28591968]
[1763544868395,0.71,139.77,139.73,3.28591968]
[1763544869289,0.71,139.77,139.74,3.28591968]
[1763544875091,0.71,139.77,139.73,3.49591968]
[1763544875479,0.71,139.77,139.73,3.28591968]
[1763544881278,0.71,139.77,139.71,0.2]
[1763544881279,3.28591968,139.74,139.71,0.2]
[1763544881480,3.28591968,139.72,139.71,0.2]
[1763544881990,3.99591968,139.72,139.71,0.2]
[1763544883177,0.71,139.72,139.71,0.2]
[1763544883393,0.71,139.75,139.71,0.2]
[1763544883587,2.41,139.74,139.71,0.2]
[1763544883796,3.28591968,139.76,139.71,3.48591968]
[1763544883974,0.71,139.74,139.71,3.48591968]
[1763544884175,0.71,139.74,139.71,0.2]
[1763544885986,0.71,139.74,139.71,3.48591968]
[1763544887404,1.7,139.75,139.72,3.28591968]
[1763544887601,0.71,139.76,139.72,3.49591968]
[1763544887774,0.71,139.76,139.72,3.28591968]
[1763544888982,3.28591968,139.75,139.71,0.2]
[1763544889389,0.71,139.74,139.71,0.2]
[1763544890881,3.28591968,139.73,139.71,0.2]
[1763544891085,3.28591968,139.72,139.71,0.2]
[1763544891303,3.97591968,139.72,139.71,0.2]
[1763544892090,0.69,139.72,139.71,0.2]
[1763544893886,3.80426418,139.73,139.71,0.2]
[1763544893887,1.7,139.73,139.71,0.2]
[1763544894203,2.39,139.73,139.71,0.2]
[1763544897307,0.69,139.72,139.71,0.2]
[1763544899407,1.7,139.73,139.71,0.2]
[1763544899596,2.39,139.73,139.71,0.2]
[1763544900302,3.80426418,139.73,139.71,0.2]
[1763544900504,0.69,139.72,139.71,0.2]
[1763544901087,2.39,139.73,139.71,0.2]
[1763544901287,0.69,139.72,139.71,0.2]
[1763544901892,2.79426418,139.72,139.71,0.2]
[1763544903189,0.69,139.72,139.71,0.2]
[1763544904315,3.80426418,139.73,139.71,0.2]
[1763544904492,0.69,139.72,139.71,0.2]
[1763544907294,2.79426418,139.72,139.67,0.2]
[1763544907524,2.10426418,139.7,139.67,0.2]
[1763544907723,2.10426418,139.69,139.67,0.2]
[1763544908029,3.80426418,139.69,139.67,0.2]
[1763544908318,2.39,139.69,139.67,0.2]
[1763544908493,2.10426418,139.68,139.67,0.2]
[1763544908915,2.79426418,139.68,139.67,0.2]
[1763544909236,2.10426418,139.68,139.67,0.2]
[1763544909736,2.79426418,139.68,139.67,0.2]
[1763544915603,11.2113209,139.68,139.65,0.2]
[1763544915795,2.10426418,139.66,139.65,0.2]
[1763544916197,17.51096,139.66,139.65,0.81]
[1763544916404,0.69,139.72,139.68,18.12096]
[1763544916728,2.79426418,139.72,139.68,18.12096]
[1763544916914,2.10426418,139.71,139.67,18.12096]
[1763544917119,0.69,139.72,139.67,18.12096]
[1763544917424,0.69,139.72,139.69,2.10426418]
[1763544917729,0.69,139.72,139.68,11.89309187]
[1763544918409,2.79426418,139.72,139.67,2.10426418]
[1763544919205,0.69,139.72,139.68,2.10426418]
[1763544919710,0.69,139.72,139.66,9.78882769]
[1763544919932,0.69,139.72,139.68,2.10426418]
[1763544920618,0.69,139.72,139.69,2.10426418]
[1763544920813,0.69,139.72,139.66,9.78882769]
[1763544921018,2.79426418,139.72,139.65,0.2]
[1763544921320,2.79426418,139.72,139.67,2.10426418]
[1763544921519,0.69,139.71,139.67,2.10426418]
[1763544925850,3.80426418,139.7,139.65,2.30426418]
[1763544926149,2.10426418,139.69,139.65,0.2]
[1763544926443,2.82426418,139.69,139.65,0.2]
[1763544926620,0.72,139.68,139.65,0.2]
[1763544927110,0.72,139.68,139.65,2.30426418]
[1763544927306,1.7,139.7,139.66,2.10426418]
[1763544927536,0.72,139.69,139.66,2.10426418]
[1763544927723,1.7,139.7,139.68,2.10426418]
[1763544927925,2.42,139.7,139.67,2.10426418]
[1763544928120,1.7,139.7,139.67,2.10426418]
[1763544928335,0.72,139.69,139.66,2.10426418]
[1763544928539,0.72,139.72,139.68,2.10426418]
[1763544928720,0.72,139.72,139.69,2.10426418]
[1763544929031,1.7,139.74,139.7,2.10426418]
[1763544929242,0.72,139.73,139.7,2.10426418]
[1763544929842,0.72,139.73,139.69,2.10426418]
[1763544931130,2.82426418,139.73,139.68,2.10426418]
[1763544931516,0.72,139.72,139.68,2.10426418]
[1763544932947,1.7,139.74,139.69,2.10426418]
[1763544932948,19.82096,139.74,139.69,2.10426418]
[1763544933142,0.72,139.73,139.69,2.10426418]
[1763544933325,2.82426418,139.73,139.69,2.10426418]
[1763544934456,0.72,139.73,139.69,2.10426418]
[1763544935151,1.7,139.74,139.7,2.10426418]
[1763544935344,20.94522418,139.75,139.7,2.10426418]
[1763544935834,20.22522418,139.75,139.7,2.10426418]
[1763544936040,20.22522418,139.75,139.67,9.78882769]
[1763544936041,0.72,139.75,139.71,2.10426418]
[1763544936431,18.84096,139.75,139.71,2.10426418]
[1763544936636,0.72,139.75,139.71,2.10426418]
[1763544940972,0.72,139.75,139.72,2.10426418]
[1763544943487,0.72,139.75,139.71,11.89309187]
[1763544945261,0.72,139.75,139.72,2.10426418]
[1763544945775,0.72,139.77,139.73,2.10426418]
[1763544945957,13.83620474,139.86,139.75,2.10426418]
[1763544945958,0.72,139.78,139.75,2.10426418]
[1763544946157,10.75358453,139.85,139.76,2.10426418]
[1763544946158,1.7,139.8,139.76,2.10426418]
[1763544946359,1.7,139.82,139.77,2.10426418]
[1763544946554,3.80426418,139.82,139.77,2.10426418]
[1763544946749,0.72,139.81,139.76,27.90978769]
[1763544946952,2.82426418,139.81,139.76,30.01405187]
[1763544947168,2.82426418,139.81,139.72,10.75358453]
[1763544947369,2.82426418,139.81,139.68,9.13297882]
[1763544947370,0.72,139.8,139.75,18.12096]
[1763544947557,2.10426418,139.79,139.74,2.10426418]
[1763544948045,0.72,139.78,139.74,2.10426418]
[1763544949480,2.82426418,139.78,139.73,11.89309187]
[1763544949672,0.69,139.77,139.73,9.78882769]
[1763544949885,0.69,139.77,139.73,11.89309187]
[1763544950391,0.69,139.77,139.74,2.10426418]
[1763544951664,0.69,139.77,139.73,9.78882769]
[1763544951967,0.69,139.77,139.74,2.10426418]
[1763544952795,0.69,139.77,139.74,3.28467411]
[1763544955883,3.28467411,139.79,139.73,9.78882769]
[1763544955884,0.69,139.79,139.75,3.28467411]
[1763544956274,0.69,139.78,139.75,3.28467411]
[1763544957012,0.69,139.8,139.76,3.28467411]
[1763544957184,3.28467411,139.81,139.76,3.28467411]
[1763544957497,0.69,139.79,139.76,3.28467411]
[1763544957888,0.69,139.79,139.75,13.0735018]
[1763544958579,3.28467411,139.78,139.73,18.12096]
[1763544958787,0.69,139.79,139.72,18.12096]
[1763544958788,3.28467411,139.77,139.72,18.12096]
[1763544958979,3.28467411,139.77,139.72,21.40563411]
[1763544959186,0.69,139.76,139.72,21.40563411]
[1763544959903,3.97467411,139.76,139.71,1.7]
[1763544960074,3.97467411,139.76,139.72,3.28467411]
[1763544960274,0.69,139.75,139.72,3.28467411]
[1763544960796,3.28467411,139.78,139.73,13.0735018]
[1763544960981,0.69,139.76,139.73,13.0735018]
[1763544961679,0.69,139.76,139.72,3.28467411]
[1763544961873,0.69,139.76,139.74,3.28467411]
[1763544962086,0.69,139.76,139.73,3.28467411]
[1763544963999,0.69,139.79,139.75,3.28467411]
[1763544964196,0.69,139.79,139.77,3.28467411]
[1763544964912,0.69,139.79,139.76,3.28467411]
[1763544965878,0.69,139.79,139.75,13.0735018]
[1763544967481,0.69,139.79,139.76,3.28467411]
[1763544967779,0.69,139.79,139.77,3.28467411]
[1763544968008,4.98467411,139.82,139.77,3.28467411]
[1763544968174,0.69,139.8,139.77,3.28467411]
[1763544968993,0.69,139.8,139.78,3.28467411]
[1763544969204,1.7,139.82,139.78,3.28467411]
[1763544969409,0.69,139.81,139.78,3.28467411]
[1763544970884,0.69,139.81,139.77,3.28467411]
[1763544972216,0.69,139.81,139.78,3.28467411]
[1763544972510,0.69,139.83,139.79,3.28467411]
[1763544972699,3.97467411,139.85,139.8,3.28467411]
[1763544973111,3.97467411,139.84,139.79,3.28467411]
[1763544973599,0.69,139.83,139.79,3.28467411]
[1763544974387,3.97467411,139.83,139.78,21.40563411]
[1763544975387,0.69,139.82,139.78,21.40563411]
[1763544976084,0.69,139.82,139.79,3.28467411]
[1763544976485,0.69,139.82,139.8,3.28467411]
[1763544976702,0.69,139.84,139.79,9.78882769]
[1763544976901,0.69,139.84,139.8,3.28467411]
[1763544977611,0.69,139.84,139.81,9.78882769]
[1763544977819,0.69,139.84,139.8,3.28467411]
[1763544978312,0.69,139.84,139.79,27.90978769]
[1763544978313,3.97467411,139.84,139.79,32.8944618]
[1763544978699,0.69,139.83,139.79,32.8944618]
[1763544979301,0.69,139.83,139.8,13.0735018]
[1763544979916,0.72,139.84,139.8,13.0735018]
[1763544980516,0.72,139.84,139.81,3.28467411]
[1763544981318,0.72,139.84,139.8,13.0735018]
[1763544981694,0.72,139.84,139.8,9.78882769]
[1763544982027,0.72,139.84,139.8,13.0735018]
[1763544986617,4.00467411,139.84,139.8,9.78882769]
[1763544987121,0.67,139.83,139.8,9.78882769]
[1763544987639,0.67,139.83,139.79,23.10563411]
[1763544987800,3.95467411,139.83,139.79,18.12096]
[1763544988307,0.67,139.82,139.79,18.12096]
[1763544989415,0.67,139.82,139.79,21.40563411]
[1763544995419,0.67,139.82,139.8,3.28467411]
[1763544995811,0.67,139.82,139.79,18.12096]
[1763544996011,0.67,139.82,139.79,21.40563411]
[1763545000143,0.67,139.82,139.77,9.78882769]
[1763545000303,3.28467411,139.79,139.74,1.7]
[1763545000504,3.28467411,139.79,139.75,9.78882769]
[1763545000699,0.67,139.78,139.75,27.90978769]
[1763545001240,0.67,139.78,139.75,31.1944618]
[1763545002330,3.28467411,139.77,139.68,3.28467411]
[1763545002508,3.28467411,139.76,139.72,9.78882769]
[1763545002713,3.28467411,139.76,139.71,3.28467411]
[1763545002911,3.95467411,139.75,139.73,18.12096]
[1763545003110,3.28467411,139.74,139.7,14.7735018]
[1763545003314,3.28467411,139.74,139.7,29.60978769]
[1763545003315,3.95467411,139.74,139.7,29.60978769]
[1763545003531,0.67,139.74,139.7,32.8944618]
[1763545004527,0.67,139.74,139.7,14.7735018]
[1763545004714,0.67,139.74,139.71,3.28467411]
[1763545005119,3.28467411,139.76,139.71,3.28467411]
[1763545005120,0.67,139.77,139.71,3.28467411]
[1763545005317,19.70096,139.8,139.73,3.28467411]
[1763545005318,3.95467411,139.78,139.73,3.28467411]
[1763545005627,0.67,139.77,139.74,3.28467411]
[1763545005831,0.67,139.77,139.73,3.28467411]
[1763545007427,0.67,139.77,139.73,4.98467411]
[1763545008924,0.67,139.77,139.75,18.12096]
[1763545012728,0.67,139.77,139.73,4.98467411]
[1763545012939,0.67,139.77,139.74,3.28467411]
[1763545013110,0.67,139.77,139.73,4.98467411]
[1763545014928,0.67,139.77,139.74,2.1024679]
[1763545018022,0.67,139.77,139.74,11.89129559]
[1763545018425,0.67,139.79,139.76,2.1024679]
[1763545018731,0.67,139.81,139.78,2.1024679]
[1763545019439,0.67,139.81,139.77,2.1024679]
[1763545019648,0.67,139.81,139.78,2.1024679]
[1763545019933,0.67,139.83,139.79,2.1024679]
[1763545020134,0.67,139.83,139.81,2.1024679]
[1763545020342,0.67,139.83,139.79,2.1024679]
[1763545020646,0.67,139.83,139.8,2.1024679]
[1763545021213,0.67,139.83,139.81,2.1024679]
[1763545021417,0.67,139.83,139.76,2.4155123]
[1763545021642,0.67,139.83,139.79,9.78882769]
[1763545021830,0.67,139.83,139.79,11.89129559]
[1763545023838,0.67,139.83,139.8,2.1024679]
[1763545024425,0.67,139.83,139.81,2.1024679]
[1763545025231,0.67,139.83,139.8,2.1024679]
[1763545025751,0.1,139.86,139.82,2.1024679]
[1763545026046,0.77,139.86,139.81,9.78882769]
[1763545026232,0.77,139.86,139.83,2.1024679]
[1763545027428,0.1,139.86,139.85,2.1024679]
[1763545028145,0.1,139.86,139.84,11.89129559]
[1763545028442,0.1,139.86,139.85,11.89129559]
[1763545028621,0.1,139.86,139.85,9.78882769]
[1763545028820,0.77,139.86,139.81,18.12096]
[1763545029025,2.8724679,139.86,139.81,18.12096]
[1763545029544,2.7724679,139.85,139.81,18.12096]
[1763545029759,2.1024679,139.84,139.79,2.1024679]
[1763545029925,2.1024679,139.83,139.79,11.48882769]
[1763545030125,2.7724679,139.83,139.79,11.48882769]
[1763545030326,0.67,139.82,139.79,11.48882769]
[1763545030626,0.67,139.82,139.79,9.78882769]
[1763545031950,2.7724679,139.82,139.78,9.78882769]
[1763545032440,2.7724679,139.81,139.77,9.78882769]
[1763545032820,0.67,139.8,139.77,9.78882769]
[1763545033068,2.1024679,139.79,139.74,11.89129559]
[1763545033227,2.1024679,139.79,139.74,11.48882769]
[1763545033428,0.67,139.78,139.74,13.59129559]
[1763545033849,0.67,139.78,139.74,11.89129559]
[1763545034348,0.67,139.78,139.75,18.12096]
[1763545035254,0.67,139.78,139.74,9.78882769]
[1763545035454,0.67,139.78,139.74,11.89129559]
[1763545036553,2.7724679,139.78,139.73,2.1024679]
[1763545036754,2.7724679,139.77,139.72,31.71225559]
[1763545037066,2.7724679,139.77,139.72,13.59129559]
[1763545037233,0.67,139.76,139.72,13.59129559]
[1763545037673,0.67,139.76,139.72,11.48882769]
[1763545037831,2.7724679,139.76,139.72,11.48882769]
[1763545038031,2.7724679,139.76,139.69,11.89129559]
[1763545038032,2.1024679,139.75,139.69,11.89129559]
[1763545038331,2.1024679,139.74,139.69,13.59129559]
[1763545038640,2.7724679,139.74,139.69,13.59129559]
[1763545038844,0.67,139.73,139.69,13.59129559]
[1763545039027,2.7724679,139.73,139.69,9.78882769]
[1763545039232,2.1024679,139.71,139.66,2.1024679]
[1763545039641,0.67,139.7,139.68,18.12096]
[1763545040946,0.67,139.71,139.68,20.2234279]
[1763545041253,0.67,139.71,139.68,18.12096]
[1763545041442,2.1024679,139.73,139.68,18.12096]
[1763545041443,2.1024679,139.74,139.69,2.1024679]
[1763545041644,2.1024679,139.74,139.69,20.2234279]
[1763545041838,0.67,139.73,139.69,20.2234279]
[1763545042733,0.67,139.73,139.7,2.1024679]
[1763545043134,0.67,139.73,139.71,2.1024679]
[1763545043833,2.1024679,139.76,139.71,2.1024679]
[1763545044033,0.67,139.75,139.72,2.1024679]
[1763545045534,0.67,139.76,139.73,2.1024679]
[1763545049082,0.67,139.76,139.74,2.1024679]
[1763545049667,0.67,139.76,139.71,32.47871363]
[1763545049668,0.67,139.76,139.75,2.1024679]
[1763545050045,0.67,139.76,139.74,2.1024679]
[1763545050848,0.67,139.76,139.71,47.73074769]
[1763545050849,0.67,139.76,139.72,9.78882769]
[1763545051063,0.67,139.76,139.73,2.1024679]
[1763545051573,0.67,139.76,139.72,11.89129559]
[1763545051869,2.7724679,139.76,139.7,4.97159962]
[1763545052080,2.7724679,139.76,139.7,2.1024679]
[1763545052256,0.67,139.75,139.71,2.1024679]
[1763545052571,0.67,139.75,139.72,2.1024679]
[1763545052967,0.67,139.75,139.68,34.58138731]
[1763545053174,2.7724679,139.75,139.68,11.48882769]
[1763545053362,2.7724679,139.75,139.7,2.1024679]
[1763545053562,0.67,139.74,139.7,2.1024679]
[1763545054973,0.67,139.74,139.71,2.1024679]
[1763545056063,0.67,139.74,139.72,2.1024679]
[1763545059056,0.67,139.74,139.65,0.2]
[1763545059057,2.1024679,139.73,139.65,0.2]
[1763545059279,0.67,139.72,139.67,2.1024679]
[1763545059866,0.67,139.72,139.65,9.98882769]
[1763545059867,0.67,139.72,139.68,2.1024679]
[1763545060557,0.67,139.72,139.67,2.1024679]
[1763545061677,0.67,139.72,139.68,2.1024679]
[1763545062070,0.67,139.72,139.67,2.1024679]
[1763545062071,2.7724679,139.72,139.67,2.1024679]
[1763545062460,0.67,139.71,139.67,2.1024679]
[1763545063592,0.67,139.73,139.69,2.1024679]
[1763545063882,0.67,139.73,139.71,2.1024679]
[1763545064081,0.67,139.74,139.71,2.1024679]
[1763545066572,0.67,139.74,139.7,2.1024679]
[1763545069864,2.7724679,139.74,139.68,11.89129559]
[1763545070063,2.1024679,139.72,139.66,9.78882769]
[1763545070290,2.1024679,139.71,139.66,11.89129559]
[1763545070477,0.69,139.7,139.66,11.89129559]
[1763545071083,0.69,139.7,139.67,2.1024679]
[1763545071396,0.69,139.7,139.68,2.1024679]
[1763545072298,1.7,139.75,139.66,9.78882769]
[1763545072299,20.2234279,139.75,139.66,9.78882769]
[1763545072600,0.69,139.73,139.69,2.1024679]
[1763545072890,0.69,139.73,139.7,2.1024679]
[1763545074768,0.69,139.73,139.7,3.28681139]
[1763545079469,1.7,139.75,139.71,3.28681139]
[1763545079684,0.69,139.73,139.71,3.28681139]
[1763545083198,2.39,139.75,139.71,3.28681139]
[1763545083398,0.69,139.74,139.71,3.28681139]
[1763545084776,0.69,139.74,139.7,3.28681139]
[1763545085271,0.69,139.74,139.71,3.28681139]
[1763545085683,0.69,139.74,139.7,3.28681139]
[1763545087724,1.7,139.75,139.72,3.28681139]
[1763545088007,0.69,139.78,139.74,3.28681139]
[1763545088206,0.69,139.78,139.75,3.28681139]
[1763545088888,2.39,139.8,139.76,3.28681139]
[1763545089198,2.39,139.8,139.77,3.28681139]
[1763545089400,0.69,139.79,139.77,3.28681139]
[1763545089605,1.7,139.8,139.78,3.28681139]
[1763545089798,0.69,139.8,139.78,3.28681139]
[1763545090102,4.98681139,139.83,139.79,3.28681139]
[1763545090103,19.82096,139.83,139.79,3.28681139]
[1763545090303,0.69,139.82,139.79,3.28681139]
[1763545090777,0.69,139.82,139.78,3.28681139]
[1763545091700,3.28681139,139.79,139.7,1.7]
[1763545091885,3.28681139,139.78,139.73,3.28681139]
[1763545092088,3.28681139,139.78,139.71,9.78882769]
[1763545092292,3.28681139,139.78,139.72,3.28681139]
[1763545092293,0.69,139.77,139.72,3.28681139]
[1763545092503,0.69,139.77,139.73,3.28681139]
[1763545093507,0.69,139.77,139.74,3.28681139]
[1763545094302,0.69,139.77,139.75,3.28681139]
[1763545098911,0.69,139.78,139.75,3.28681139]
[1763545099105,0.69,139.79,139.75,3.28681139]
[1763545103219,0.69,139.79,139.77,3.28681139]
[1763545104024,0.69,139.79,139.72,9.78882769]
[1763545104025,0.69,139.79,139.75,3.28681139]
[1763545109521,0.69,139.79,139.74,3.28681139]
[1763545110924,0.69,139.79,139.75,3.28681139]
[1763545113418,0.69,139.79,139.74,3.28681139]
[1763545113629,0.69,139.79,139.75,3.28681139]
[1763545114730,0.69,139.79,139.74,3.28681139]
[1763545117834,0.69,139.79,139.75,3.28681139]
[1763545121045,0.69,139.79,139.74,3.28681139]
[1763545122409,0.69,139.79,139.72,11.48882769]
[1763545122410,0.69,139.79,139.75,3.28681139]
[1763545122608,0.68,139.81,139.76,3.28681139]
[1763545122832,0.68,139.81,139.79,3.28681139]
[1763545123645,0.68,139.83,139.8,3.28681139]
[1763545124736,0.68,139.83,139.76,14.77563908]
[1763545124737,0.68,139.83,139.79,3.28681139]
[1763545128555,0.68,139.83,139.8,3.28681139]
[1763545131035,3.28681139,139.82,139.72,9.78882769]
[1763545131216,3.28681139,139.82,139.69,7.15843069]
[1763545131217,3.28681139,139.81,139.77,9.78882769]
[1763545131616,0.71,139.82,139.77,9.78882769]
[1763545131617,0.71,139.8,139.77,9.78882769]
[1763545132248,0.71,139.8,139.77,3.28681139]
[1763545136840,0.71,139.8,139.77,2.10140609]
[1763545139967,0.71,139.8,139.75,9.78882769]
[1763545140169,0.71,139.8,139.75,11.89023378]
[1763545140342,0.71,139.8,139.76,2.10140609]
[1763545142147,2.81140609,139.8,139.75,2.10140609]
[1763545142651,0.71,139.79,139.75,2.10140609]
[1763545144957,0.71,139.79,139.76,2.10140609]
[1763545146667,0.71,139.81,139.78,2.10140609]
[1763545146874,0.71,139.8,139.78,2.10140609]
[1763545147561,18.12096,139.83,139.78,2.10140609]
[1763545147562,0.71,139.81,139.78,2.10140609]
[1763545147874,0.71,139.82,139.78,2.10140609]
[1763545148376,0.71,139.82,139.79,2.10140609]
[1763545150267,0.71,139.82,139.78,2.10140609]
[1763545152681,2.41,139.84,139.81,2.10140609]
[1763545152859,2.41,139.84,139.77,9.78882769]
[1763545152860,0.71,139.84,139.82,2.10140609]
[1763545158491,0.71,139.84,139.81,2.10140609]
[1763545162063,0.1,139.86,139.82,2.10140609]
[1763545162378,0.69,139.85,139.82,2.10140609]
[1763545164078,0.69,139.85,139.8,12.65610843]
[1763545164272,0.69,139.85,139.82,2.10140609]
[1763545164476,0.69,139.85,139.81,2.10140609]
[1763545164692,0.69,139.85,139.82,2.10140609]
[1763545165086,0.69,139.85,139.83,18.12096]
[1763545167374,0.69,139.85,139.82,2.10140609]
[1763545170102,0.1,139.86,139.84,11.89023378]
[1763545170398,0.1,139.86,139.85,2.10140609]
[1763545170574,0.1,139.86,139.85,4.96786493]
[1763545170978,0.1,139.86,139.85,32.87765262]
[1763545171492,0.1,139.87,139.85,32.87765262]
[1763545171493,0.1,139.87,139.86,9.78882769]
[1763545171692,0.1,139.87,139.86,13.59023378]
[1763545172200,0.1,139.87,139.86,35.5471868]
[1763545172387,0.1,139.87,139.86,13.59023378]
[1763545173290,0.1,139.87,139.86,11.48882769]
[1763545173478,0.1,139.87,139.86,35.39895964]
[1763545173681,0.1,139.87,139.86,13.59023378]
[1763545175802,0.1,139.87,139.86,11.89023378]
[1763545175986,0.1,139.87,139.86,31.71119378]
[1763545180897,0.1,139.87,139.86,12.65508113]
[1763545180898,0.77,139.87,139.86,12.65508113]
[1763545181101,0.77,139.87,139.86,14.75648722]
[1763545182690,0.1,139.87,139.86,14.75648722]